fUST/lending_fUST_20251008
["ID","MTS","AMOUNT","RATE_DAILY","PERIOD"]
[389866991,1759878643603,-2596.71020093,0.00021424,2]
[389866994,1759878643612,-151.0,0.00021424,2]
[389866997,1759878643622,-500.0,0.00021424,2]
[389867000,1759878643631,-151.0,0.00021424,2]
[389867002,1759878643642,-500.0,0.00021424,2]
[389867004,1759878643652,-162.380719,0.00021424,2]
[389867006,1759878643662,-151.0,0.00021424,2]
[389867008,1759878643671,-500.0,0.00021424,2]
[389867010,1759878643680,-151.0,0.00021424,2]
[389867012,1759878643689,-500.0,0.00021424,2]
[389867014,1759878643698,-151.0,0.00021424,2]
[389867016,1759878643708,-500.0,0.00021424,2]
[389867018,1759878643717,-18603.8837,0.00021424,2]
[389867020,1759878643727,-151.0,0.00021424,2]
[389867022,1759878643736,-500.0,0.00021424,2]
[389867024,1759878643746,-151.0,0.00021424,2]
[389867026,1759878643755,-500.0,0.00021424,2]
[389867028,1759878643766,-151.0,0.00021424,2]
[389867030,1759878643775,-151.0,0.00021424,2]
[389867032,1759878643784,-2031.4269982,0.00021424,2]
[389867034,1759878643793,-361.07194209,0.00021424,2]
[389867036,1759878643803,-151.0,0.00021424,2]
[389867038,1759878643812,-151.0,0.00021424,2]
[389867040,1759878643821,-151.0,0.00021424,2]
[389867042,1759878643831,-151.0,0.00021424,2]
[389867044,1759878643840,-151.0,0.00021424,2]
[389867046,1759878643850,-151.0,0.00021424,2]
[389867048,1759878643861,-151.0,0.00021424,2]
[389867050,1759878643871,-151.0,0.00021424,2]
[389867052,1759878643880,-151.0,0.00021424,2]
[389867054,1759878643889,-151.0,0.00021424,2]
[389867055,1759878643899,-151.0,0.00021424,2]
[389867057,1759878643908,-151.0,0.00021424,2]
[389867059,1759878643918,-151.0,0.00021424,2]
[389867061,1759878643927,-2395.0309457,0.00021463,2]
[389867063,1759878643936,-307.5,0.00021484,2]
[389867065,1759878643945,-151.0,0.00021496,7]
[389867067,1759878643955,-151.0,0.00021496,7]
[389867069,1759878643964,-151.0,0.00021496,7]
[389867071,1759878643974,-3000.0,0.00021602,2]
[389867073,1759878643984,-151.0,0.00021638,7]
[389867075,1759878643993,-151.0,0.00021638,7]
[389867077,1759878644002,-151.0,0.00021638,7]
[389867079,1759878644011,-807.0,0.00021645,2]
[389867081,1759878644020,-660.0,0.00021694,2]
[389867083,1759878644030,-864.0,0.00021705,20]
[389867085,1759878644039,-169.74342968,0.00021714,17]
[389867087,1759878644048,-151.0,0.00021745,7]
[389867089,1759878644058,-250.0,0.00021746,2]
[389867091,1759878644068,-212.814,0.00021746,2]
[389867093,1759878644077,-150.0,0.00021746,2]
[389867095,1759878644087,-229.054,0.00021746,2]
[389867097,1759878644096,-250.0,0.00021746,2]
[389867099,1759878644105,-150.0,0.00021746,2]
[389867101,1759878644117,-263.486,0.00021746,2]
[389867103,1759878644127,-295.0,0.00021746,2]
[389867105,1759878644136,-293.902,0.00021746,2]
[389867107,1759878644145,-980.0,0.00021746,2]
[389867109,1759878644154,-630.0,0.00021746,2]
[389867111,1759878644166,-2158.0,0.00021746,2]
[389867113,1759878644174,-151.0,0.000218,4]
[389867115,1759878644184,-807.0,0.00021919,2]
[389867117,1759878644194,-391.5020677,0.00021923,2]
[389867119,1759878644203,-151.0,0.00021972,7]
[389867120,1759878644212,-257.527292,0.00021972,7]
[389867122,1759878644221,-151.0,0.00021972,7]
[389867124,1759878644230,-229.782625,0.00021972,7]
[389867126,1759878644239,-229.782625,0.00021972,7]
[389867128,1759878644248,-229.782625,0.00021972,7]
[389867130,1759878644257,-229.78262,0.00021972,7]
[389867132,1759878644267,-151.0,0.00021972,7]
[389867134,1759878644275,-204.182645,0.00021972,7]
[389867136,1759878644284,-204.182645,0.00021972,7]
[389867138,1759878644294,-204.182645,0.00021972,7]
[389867140,1759878644303,-204.18265,0.00021972,7]
[389867142,1759878644312,-151.0,0.00021972,7]
[389867144,1759878644321,-240.984144,0.00021972,7]
[389867146,1759878644330,-151.0,0.00021972,7]
[389867148,1759878644339,-293.860115,0.00021972,7]
[389867150,1759878644348,-155.331892,0.00021972,7]
[389867152,1759878644358,-151.0,0.00021972,7]
[389867154,1759878644366,-259.750315,0.00021972,7]
[389867156,1759878644375,-151.0,0.00021972,7]
[389867158,1759878644385,-2969.942289,0.00021972,7]
[389867160,1759878644394,-2969.942289,0.00021972,7]
[389867162,1759878644403,-2969.942289,0.00021972,7]
[389867164,1759878644412,-2969.942296,0.00021972,7]
[389867166,1759878644421,-173.31412,0.00021972,7]
[389867168,1759878644430,-168.3888056,0.00021972,2]
[389867170,1759878644439,-19292.2273969,0.00021972,2]
[389867172,1759878644449,-533.72506543,0.00022,7]
[389867174,1759878644458,-500.0,0.00022024,2]
[389867176,1759878644467,-169.74342968,0.00022059,18]
[389867177,1759878644476,-330.0,0.00022084,2]
[389867179,1759878644485,-500.0,0.00022102,2]
[389867181,1759878644494,-807.0,0.00022193,2]
[389867183,1759878644503,-500.0,0.00022212,2]
[389867185,1759878644512,-500.0,0.00022242,2]
[389867187,1759878644521,-374.65278337,0.00022242,2]
[389867189,1759878644530,-432.25051724,0.00022242,2]
[389867191,1759878644539,-500.0,0.00022242,2]
[389867193,1759878644548,-500.0,0.00022242,2]
[389867195,1759878644558,-500.0,0.00022242,2]
[389867197,1759878644567,-500.0,0.00022242,2]
[389867199,1759878644576,-500.0,0.00022242,2]
[389867201,1759878644587,-500.0,0.00022242,2]
[389867203,1759878644596,-500.0,0.00022242,2]
[389867205,1759878644606,-500.0,0.00022242,2]
[389867207,1759878644615,-572.39088268,0.00022242,2]
[389867209,1759878644625,-500.0,0.00022242,2]
[389867211,1759878644635,-500.0,0.00022242,2]
[389867213,1759878644644,-500.0,0.00022242,2]
[389867215,1759878644653,-500.0,0.00022242,2]
[389867217,1759878644663,-500.0,0.00022242,2]
[389867219,1759878644672,-500.0,0.00022242,2]
[389867221,1759878644681,-760.0,0.00022242,2]
[389867223,1759878644690,-1000.0,0.00022336,4]
[389867225,1759878644699,-156.09962736,0.00022358,2]
[389867227,1759878644709,-500.0,0.00022358,2]
[389867229,1759878644718,-500.0,0.00022358,2]
[389867231,1759878644727,-527.12120474,0.00022358,2]
[389867233,1759878644737,-500.0,0.00022358,2]
[389867235,1759878644747,-175.21856265,0.00022358,2]
[389867237,1759878644757,-500.0,0.00022358,2]
[389867239,1759878644767,-500.0,0.00022358,2]
[389867241,1759878644776,-500.0,0.00022358,2]
[389867243,1759878644786,-500.0,0.00022358,2]
[389867245,1759878644795,-165.75923199,0.00022358,2]
[389867247,1759878644804,-500.0,0.00022358,2]
[389867249,1759878644814,-500.44900947,0.00022358,2]
[389867251,1759878644823,-169.74342968,0.00022403,19]
[389867253,1759878644832,-807.0,0.00022467,2]
[389867255,1759878644841,-823.0,0.00022503,2]
[389867256,1759878644851,-151.0,0.0002252,7]
[389867259,1759878644860,-151.0,0.0002252,7]
[389867261,1759878644870,-192.50215079,0.0002252,2]
[389867263,1759878644879,-20006.03981059,0.0002252,2]
[389867264,1759878644889,-352.5,0.00022684,2]
[389867266,1759878644898,-807.0,0.00022741,2]
[389867268,1759878644908,-169.74342968,0.00022747,21]
[389867270,1759878644918,-1000.0,0.0002279,2]
[389867273,1759878644928,-1000.0,0.0002279,2]
[389867275,1759878644936,-1000.0,0.0002279,2]
[389867277,1759878644946,-1000.0,0.0002279,2]
[389867279,1759878644955,-1000.0,0.0002279,2]
[389867281,1759878644964,-1000.0,0.0002279,2]
[389867283,1759878644974,-1000.0,0.0002279,2]
[389867285,1759878644983,-1000.0,0.0002279,2]
[389867286,1759878644992,-860.0,0.0002279,2]
[389867288,1759878645002,-168.3888056,0.00022793,2]
[389867290,1759878645011,-514.113,0.00022847,2]
[389867292,1759878645020,-666.66666667,0.00022866,2]
[389867294,1759878645029,-176.96952832,0.000229,2]
[389867296,1759878645038,-1000.0,0.00022906,2]
[389867298,1759878645047,-1000.0,0.00022906,2]
[389867300,1759878645056,-1017.00040585,0.00022906,2]
[389867302,1759878645065,-500.0,0.00022959,2]
[389867304,1759878645074,-500.0,0.00022973,2]
[389867306,1759878645084,-255.66736951,0.00022973,2]
[389867308,1759878645093,-500.0,0.00022973,2]
[389867310,1759878645103,-402.02512307,0.00022973,7]
[389867312,1759878645113,-156.646,0.00022999,2]
[389867314,1759878645126,-200.0,0.00022999,2]
[389867316,1759878645135,-219.83176781,0.00023,2]
[389867318,1759878645144,-5318.00114445,0.00023,2]
[389867320,1759878645153,-316898.89964367,0.00023,7]
[389867322,1759878645164,-402.02512307,0.00023,7]
[389867324,1759878645173,-151.0,0.00023,7]
[389867326,1759878645182,-151.0,0.00023,7]
[389867328,1759878645193,-151.0,0.00023,7]
[389867329,1759878645202,-151.0,0.00023,7]
[389867331,1759878645211,-151.0,0.00023,7]
[389867333,1759878645220,-151.0,0.00023,7]
[389867335,1759878645230,-151.0,0.00023,7]
[389867337,1759878645239,-246.344456,0.00023,7]
[389867339,1759878645248,-160.0,0.00023,2]
[389867341,1759878645257,-6998.05017318,0.00023,2]
[389867361,1759878645266,-666.66666667,0.00023003,4]
[389867364,1759878645457,-666.66666667,0.00023003,4]
[389867366,1759878645466,-666.66666667,0.00023003,4]
[389867368,1759878645476,-666.66666667,0.00023003,4]
[389867370,1759878645485,-6904.68,0.00023013,2]
[389867372,1759878645495,-807.0,0.00023015,2]
[389867374,1759878645504,-20746.26328358,0.00023068,2]
[389867376,1759878645513,-169.74342968,0.00023092,22]
[389867378,1759878645523,-166.0,0.00023133,3]
[389867380,1759878645532,-166.0,0.00023133,3]
[389867382,1759878645542,-166.0,0.00023133,3]
[389867384,1759878645551,-172.0,0.00023133,3]
[389867386,1759878645560,-666.66666667,0.00023141,6]
[389867388,1759878645569,-666.66666667,0.00023141,6]
[389867390,1759878645579,-666.66666667,0.00023141,6]
[389867392,1759878645588,-666.66666667,0.00023141,6]
[389867394,1759878645597,-500.0,0.0002316,2]
[389867396,1759878645607,-500.0,0.00023162,2]
[389867398,1759878645616,-152.142346,0.00023192,7]
[389867399,1759878645625,-151.0,0.00023192,7]
[389867401,1759878645634,-151.0,0.00023192,7]
[389867403,1759878645643,-219.83176781,0.000232,2]
[389867405,1759878645653,-500.0,0.00023207,2]
[389867407,1759878645662,-666.66666667,0.00023278,8]
[389867409,1759878645671,-666.66666667,0.00023278,8]
[389867411,1759878645680,-666.66666667,0.00023278,8]
[389867413,1759878645690,-500.0,0.00023287,2]
[389867415,1759878645700,-807.0,0.00023288,2]
[389867417,1759878645709,-1500.0,0.00023338,2]
[389867419,1759878645720,-1500.0,0.00023338,2]
[389867421,1759878645729,-1500.0,0.00023338,2]
[389867423,1759878645740,-1500.0,0.00023338,2]
[389867425,1759878645749,-1500.0,0.00023338,2]
[389867427,1759878645759,-1500.0,0.00023338,2]
[389867429,1759878645769,-1500.0,0.00023338,2]
[389867431,1759878645780,-1500.0,0.00023338,2]
[389867433,1759878645789,-960.0,0.00023338,2]
[389867435,1759878645798,-500.0,0.00023342,2]
[389867437,1759878645807,-666.66666667,0.00023416,10]
[389867439,1759878645817,-666.66666667,0.00023416,10]
[389867441,1759878645826,-666.66666667,0.00023416,10]
[389867443,1759878645835,-151.0,0.00023416,7]
[389867445,1759878645844,-169.74342968,0.00023436,24]
[389867447,1759878645853,-685.30445961,0.00023454,2]
[389867448,1759878645863,-219.83176781,0.000235,2]
[389867450,1759878645872,-153.324101,0.000235,7]
[389867452,1759878645882,-500.0,0.00023507,2]
[389867454,1759878645892,-500.0,0.00023521,2]
[389867455,1759878645901,-669.64470664,0.00023534,2]
[389867456,1759878645910,-2675.90024773,0.00023534,2]
[389867457,1759878645919,-349.31487302,0.00023534,2]
[389867458,1759878645928,-1397.25949209,0.00023534,2]
[389867459,1759878645937,-3143.83385719,0.00023534,2]
[389867460,1759878645946,-5583.44893037,0.00023534,2]
[389867461,1759878645955,-666.66666667,0.00023553,12]
[389867462,1759878645964,-666.66666667,0.00023553,12]
[389867463,1759878645973,-1591.0,0.00023558,2]
[389867464,1759878645983,-807.0,0.00023562,2]
[389867465,1759878645992,-500.0,0.00023622,2]
[389867466,1759878646001,-1000.0,0.00023647,5]
[389867467,1759878646010,-1572.0,0.00023671,2]
[389867468,1759878646019,-1572.0,0.00023684,2]
[389867469,1759878646029,-171.644529,0.00023686,2]
[389867470,1759878646038,-500.0,0.00023687,2]
[389867471,1759878646047,-666.66666667,0.00023691,14]
[389867472,1759878646057,-219.83176781,0.000237,2]
[389867474,1759878646067,-402.02512307,0.000237,7]
[389867476,1759878646076,-1572.0,0.00023714,2]
[389867478,1759878646085,-169.74342968,0.0002378,25]
[389867480,1759878646094,-308.5103344,0.00023808,2]
[389867482,1759878646103,-666.66666667,0.00023828,16]
[389867484,1759878646114,-666.66666667,0.00023828,16]
[389867486,1759878646125,-807.0,0.00023836,2]
[389867488,1759878646134,-1000.0,0.00023875,20]
[389867490,1759878646143,-190.0,0.0002388,8]
[389867492,1759878646153,-2000.0,0.00023886,2]
[389867494,1759878646163,-2000.0,0.00023886,2]
[389867496,1759878646172,-2000.0,0.00023886,2]
[389867498,1759878646181,-2000.0,0.00023886,2]
[389867500,1759878646192,-1518.53734145,0.00023886,2]
[389867502,1759878646202,-2000.0,0.00023886,2]
[389867504,1759878646211,-2000.0,0.00023886,2]
[389867506,1759878646220,-1060.0,0.00023886,2]
[389867508,1759878646229,-219.83176781,0.000239,2]
[389867510,1759878646238,-666.66666667,0.00023966,18]
[389867512,1759878646247,-160.0,0.00024,7]
[389867514,1759878646256,-234.20938206,0.00024,7]
[389867516,1759878646265,-151.0,0.00024,7]
[389867518,1759878646275,-151.0,0.000241,7]
[389867520,1759878646284,-666.66666667,0.00024103,20]
[389867522,1759878646292,-807.0,0.0002411,2]
[389867524,1759878646301,-169.74342968,0.00024125,26]
[389867526,1759878646310,-1572.0,0.00024151,2]
[389867528,1759878646319,-1028.9503613,0.00024152,2]
[389867530,1759878646328,-168.3888056,0.00024162,2]
[389867532,1759878646337,-1572.0,0.00024168,2]
[389867534,1759878646345,-1000.0,0.00024252,4]
[389867536,1759878646354,-1572.0,0.00024311,2]
[389867538,1759878646363,-1572.0,0.00024313,2]
[389867540,1759878646372,-1572.0,0.00024313,2]
[389867542,1759878646381,-1572.0,0.00024339,2]
[389867544,1759878646390,-827.47602337,0.00024384,2]
[389867546,1759878646400,-1575.0,0.00024393,2]
[389867547,1759878646409,-1371.0,0.00024398,2]
[389867549,1759878646418,-1572.0,0.00024408,2]
[389867551,1759878646427,-167.83565487,0.00024417,7]
[389867553,1759878646436,-194.0,0.00024429,2]
[389867555,1759878646446,-2500.0,0.00024433,2]
[389867557,1759878646455,-2500.0,0.00024433,2]
[389867560,1759878646465,-500.0,0.00024433,2]
[389867561,1759878646474,-881.68287971,0.00024433,2]
[389867666,1759878647441,-151.0,0.00019436,7]
[389867668,1759878647450,-131.86511625,0.00021424,2]
[389867670,1759878647460,-19.13488375,0.00021424,2]
[389867672,1759878647469,-151.0,0.00021424,2]
[389867674,1759878647478,-151.0,0.00021424,2]
[389867676,1759878647487,-1618.31712029,0.00024433,2]
[389867678,1759878647496,-795.62220928,0.00024433,2]
[389867680,1759878647504,-500.0,0.00024433,2]
[389867682,1759878647513,-1160.0,0.00024434,2]
[389867684,1759878647522,-169.74342968,0.00024469,28]
[389867686,1759878647531,-1572.0,0.00024479,2]
[389867687,1759878647540,-264.637976,0.00024491,2]
[389867690,1759878647550,-151.0,0.000245,9]
[389867691,1759878647559,-153.324101,0.000245,22]
[389867693,1759878647568,-1572.0,0.0002451,2]
[389867695,1759878647577,-1152.0,0.00024571,2]
[389867697,1759878647586,-1572.0,0.00024576,2]
[389867699,1759878647596,-194.0,0.00024606,2]
[389867701,1759878647605,-1371.0,0.00024611,2]
[389867703,1759878647615,-5000.0,0.00024632,2]
[389867705,1759878647624,-194.0,0.00024649,2]
[389867707,1759878647633,-168.0,0.00024658,14]
[389867709,1759878647642,-207.968103,0.00024658,2]
[389867711,1759878647652,-592.0,0.00024658,2]
[389867713,1759878647661,-150.0,0.00024746,2]
[389867715,1759878647670,-150.0,0.00024746,2]
[389867717,1759878647680,-150.0,0.00024746,2]
[389867719,1759878647689,-150.0,0.00024746,2]
[389867721,1759878647698,-150.0,0.00024746,2]
[389867723,1759878647707,-150.0,0.00024746,2]
[389867725,1759878647716,-980.0,0.00024746,2]
[389867727,1759878647725,-630.0,0.00024746,2]
[389867729,1759878647735,-2158.0,0.00024746,2]
[389867731,1759878647744,-761.0190396,0.00024767,2]
[389867733,1759878647753,-698.33735371,0.00024773,2]
[389867735,1759878647762,-631.72896324,0.00024773,2]
[389867737,1759878647771,-353.83966791,0.00024773,2]
[389867739,1759878647780,-1000.0,0.00024776,2]
[389867741,1759878647790,-1000.0,0.00024776,2]
[389867743,1759878647799,-1000.0,0.00024776,2]
[389867745,1759878647809,-1000.0,0.00024776,2]
[389867748,1759878647819,-1000.0,0.00024776,2]
[389867750,1759878647828,-456.0910544,0.00024776,2]
[389867752,1759878647842,-543.9089456,0.00024776,2]
[389867754,1759878647851,-1000.0,0.00024776,2]
[389867756,1759878647860,-1000.0,0.00024776,2]
[389867758,1759878647869,-698.11590693,0.00024776,2]
[389867802,1759878648287,-500.0,0.00020996,2]
[389867804,1759878648296,-151.0,0.00021424,2]
[389867806,1759878648305,-253.52086394,0.00021424,2]
[389867807,1759878648315,-301.88409307,0.00024776,2]
[389867808,1759878648324,-1000.0,0.00024776,2]
[389867809,1759878648336,-298.5175,0.00024776,2]
[389867810,1759878648346,-400.64927619,0.0002479,2]
[389867812,1759878648355,-2000.0,0.000248,2]
[389867814,1759878648365,-250.0,0.000248,10]
[389867816,1759878648375,-169.74342968,0.00024813,29]
[389867818,1759878648384,-500.0,0.0002482,2]
[389867820,1759878648393,-500.0,0.00024872,9]
[389867822,1759878648402,-150.0,0.00024873,2]
[389867824,1759878648411,-500.0,0.0002488,9]
[389867826,1759878648420,-250.0,0.000249,10]
[389867828,1759878648430,-61975.98546222,0.000249,2]
[389867830,1759878648441,-34375.03634685,0.000249,2]
[389867834,1759878648466,-20768.40068442,0.000249,2]
[389867836,1759878648477,-16764.78660028,0.000249,2]
[389867894,1759878649013,-11422.11,0.00021414,10]
[389867896,1759878649023,-495062.84293523,0.000249,2]
[389867898,1759878649033,-5000.0,0.00024907,2]
[389867900,1759878649043,-5000.0,0.00024907,2]
[389867902,1759878649053,-3309.16000061,0.00024907,2]
[389868505,1759878733857,264523.31135856,0.00017188,2]
[389868507,1759878760678,17968.30600749,0.00023,30]
[389868508,1759878928416,2354.0,0.00028767,120]
[389868510,1759879042042,10000.0,0.00028767,120]
[389868511,1759879061971,1048.0,0.00028767,120]
[389868512,1759879191585,1000.0,0.00028767,120]
[389868513,1759879203886,1000.0,0.00028767,120]
[389868514,1759879237104,509.32,0.00028767,120]
[389868536,1759879651651,1000.0,0.00028767,120]
[389868537,1759879660167,1000.0,0.00028767,120]
[389868538,1759879673103,1000.0,0.00028767,120]
[389868539,1759879678334,3900.0,0.00028767,120]
[389868541,1759879738987,1355.29,0.00028767,120]
[389868586,1759879832594,-453.0,0.000176,2]
[389868594,1759879832656,-1656.736836,0.000176,2]
[389868596,1759879832666,-150.0,0.0001763,2]
[389868598,1759879832675,-1200.0,0.0001763,2]
[389868600,1759879832683,-1200.0,0.00017631,2]
[389868602,1759879832692,-300.0,0.00017631,2]
[389868604,1759879832701,-300.0,0.00017632,2]
[389868605,1759879832710,-300.0,0.00017632,2]
[389868609,1759879832719,-300.0,0.00017632,2]
[389868612,1759879832729,-300.0,0.00017632,2]
[389868614,1759879832742,-300.0,0.00017632,2]
[389868617,1759879832751,-300.0,0.00017632,2]
[389868620,1759879832760,-300.0,0.00017632,2]
[389868623,1759879832769,-300.0,0.00017632,2]
[389868625,1759879832778,-300.0,0.00017632,2]
[389868627,1759879832787,-300.0,0.00017632,2]
[389868629,1759879832796,-300.0,0.00017632,2]
[389868631,1759879832805,-300.0,0.00017632,2]
[389868633,1759879832815,-300.0,0.00017632,2]
[389868635,1759879832825,-300.0,0.00017632,2]
[389868637,1759879832835,-300.0,0.00017632,2]
[389868639,1759879832844,-2000.0,0.00017808,7]
[389868641,1759879832853,-2043.07086656,0.00017808,7]
[389868643,1759879832862,-165.93489472,0.000179,2]
[389868645,1759879832872,-600.0,0.00017984,2]
[389868647,1759879832880,-151.0,0.00017989,2]
[389868648,1759879832889,-151.0,0.00017989,2]
[389868650,1759879832899,-160.19833208,0.00017989,2]
[389868652,1759879832908,-500.0,0.00017999,2]
[389868655,1759879832917,-500.0,0.00017999,2]
[389868657,1759879832926,-500.0,0.00017999,2]
[389868659,1759879832936,-500.0,0.00017999,2]
[389868660,1759879832945,-407.84211162,0.00017999,2]
[389868662,1759879832954,-500.0,0.00017999,2]
[389868664,1759879832963,-500.0,0.00017999,2]
[389868666,1759879832972,-551.47236554,0.00017999,2]
[389868668,1759879832981,-500.0,0.00017999,2]
[389868670,1759879832990,-500.0,0.00017999,2]
[389868672,1759879832999,-500.0,0.00017999,2]
[389868674,1759879833007,-197.2284059,0.00017999,2]
[389868676,1759879833016,-405.83811968,0.00017999,2]
[389868678,1759879833025,-523.03281875,0.00017999,2]
[389868680,1759879833034,-500.0,0.00017999,2]
[389868682,1759879833044,-500.0,0.00017999,2]
[389868684,1759879833053,-64744.51754107,0.00018,2]
[389868686,1759879833062,-172.5,0.0001823,2]
[389868688,1759879833073,-500.0,0.00018275,2]
[389868690,1759879833082,-500.0,0.00018275,2]
[389868692,1759879833091,-1000.0,0.00018823,2]
[389868694,1759879833100,-185.74623322,0.0001883,2]
[389868696,1759879833109,-500.0,0.00019245,2]
[389868698,1759879833118,-480.0,0.00019245,2]
[389868700,1759879833127,-420.0,0.00019245,2]
[389868702,1759879833138,-500.0,0.00019286,2]
[389868704,1759879833147,-480.0,0.00019338,2]
[389868706,1759879833156,-1606.1442599,0.00019371,2]
[389868708,1759879833164,-167.0,0.00019699,3]
[389868710,1759879833173,-1962.45489838,0.000197,2]
[389868712,1759879833182,-500.0,0.00019729,2]
[389868714,1759879833191,-160.0,0.00019755,2]
[389868716,1759879833200,-234.20938206,0.00019755,2]
[389868718,1759879833209,-720.0,0.00019782,2]
[389868720,1759879833218,-1157.91918961,0.000198,2]
[389868722,1759879833228,-500.0,0.0001987,2]
[389868724,1759879833237,-500.0,0.0001987,2]
[389868725,1759879833246,-1962.45489838,0.000199,2]
[389868727,1759879833256,-150.0,0.00019999,2]
[389868729,1759879833265,-300.0,0.00019999,2]
[389868731,1759879833274,-450.0,0.00019999,2]
[389868733,1759879833283,-600.0,0.00019999,2]
[389868735,1759879833292,-750.0,0.00019999,2]
[389868737,1759879833301,-794.37443528,0.00019999,2]
[389868739,1759879833310,-1157.91918961,0.0002,2]
[389868741,1759879833319,-1962.45489838,0.000201,2]
[389868743,1759879833328,-1157.91918961,0.000202,2]
[389868745,1759879833337,-1962.45489838,0.000203,2]
[389868747,1759879833346,-249.52684358,0.00020308,2]
[389868749,1759879833355,-508.7347282,0.00020308,2]
[389868751,1759879833364,-168.3888056,0.00020309,2]
[389868753,1759879833373,-162.380719,0.00020309,2]
[389868755,1759879833383,-18603.8837,0.00020309,2]
[389868757,1759879833392,-151.0,0.00020309,2]
[389868759,1759879833401,-151.0,0.00020309,2]
[389868761,1759879833410,-151.0,0.00020309,2]
[389868763,1759879833419,-151.0,0.00020309,2]
[389868765,1759879833428,-500.0,0.00020309,2]
[389868767,1759879833437,-151.0,0.00020309,2]
[389868769,1759879833447,-500.0,0.00020309,2]
[389868771,1759879833456,-151.0,0.00020309,2]
[389868773,1759879833465,-500.0,0.00020309,2]
[389868775,1759879833474,-151.0,0.00020309,2]
[389868777,1759879833484,-500.0,0.00020309,2]
[389868779,1759879833493,-151.0,0.00020309,2]
[389868781,1759879833502,-605.36418013,0.00020309,2]
[389868783,1759879833511,-151.0,0.00020309,2]
[389868785,1759879833521,-151.0,0.00020309,2]
[389868787,1759879833530,-151.0,0.00020309,2]
[389868789,1759879833539,-151.0,0.00020309,2]
[389868791,1759879833548,-151.0,0.00020309,2]
[389868793,1759879833557,-151.0,0.00020309,2]
[389868795,1759879833566,-151.0,0.00020309,2]
[389868797,1759879833575,-151.0,0.00020309,2]
[389868799,1759879833584,-151.0,0.00020309,2]
[389868801,1759879833593,-151.0,0.00020309,2]
[389868803,1759879833602,-1157.91918961,0.000204,2]
[389868804,1759879833611,-1962.45489838,0.000205,2]
[389868806,1759879833620,-1157.91918961,0.000206,2]
[389868808,1759879833629,-1157.91918961,0.000208,2]
[389868810,1759879833638,-19292.2273969,0.00020857,2]
[389868812,1759879833647,-1157.91918961,0.00021,2]
[389868814,1759879833656,-299.0,0.00021006,2]
[389868816,1759879833666,-160.0,0.000211,2]
[389868818,1759879833675,-1157.91918961,0.000212,2]
[389868820,1759879833684,-4518.08627257,0.000212,2]
[389868822,1759879833693,-1157.91918961,0.000214,2]
[389868824,1759879833702,-3919.07465042,0.00021405,2]
[389869324,1759879838647,-402.02512307,0.00019755,2]
[389869326,1759879838657,-11140.52857264,0.00021405,2]
[389869443,1759879839780,1000.0,0.00028767,120]
[389869531,1759879840639,-4946.43658753,0.00021405,2]
[389869533,1759879840649,-1157.91918961,0.000216,2]
[389869535,1759879840660,-260.0,0.00021648,2]
[389869537,1759879840669,-162.380719,0.00021678,2]
[389869539,1759879840678,-864.0,0.0002176,20]
[389869540,1759879840688,-136.45844851,0.00021936,2]
[389869542,1759879840702,-1602.60655149,0.00021936,2]
[389869544,1759879840711,-630.0,0.00021936,2]
[389869546,1759879840720,-411.0,0.00021936,2]